[Event "EICC 2021"]
[Site "Reykjavik"]
[Date "2021.09.03"]
[Round "9.40"]
[White "Steingrimsson, Hedinn"]
[Black "Baltag, Iulian"]
[Result "1-0"]
[ECO "E32"]
[WhiteElo "2519"]
[BlackElo "2410"]
[Annotator "ChessBase"]
[PlyCount "100"]
[EventDate "2021.08.26"]
[EventType "swiss"]
[EventCountry "ISL"]
[Tiebreak "Cut1 Buchholz"]
[SourceTitle "playchess.com"]
[Source "ChessBase"]
[SourceQuality "1"]
[TimeControl "40/5400+30:1800+30"]

1. d4 {[%emt 0:00:32]} Nf6 {[%emt 0:00:21]} 2. c4 {[%emt 0:00:06]} e6 {[%emt 0:
00:05]} 3. Nc3 {[%emt 0:00:55]} Bb4 {[%emt 0:00:06]} 4. Qc2 {[%emt 0:00:05]} b6
{[%emt 0:00:04]} 5. e4 {[%emt 0:00:49]} c5 {[%emt 0:00:18]} 6. d5 {[%emt 0:00:
11]} Qe7 {[%emt 0:00:11]} 7. Nge2 {[%emt 0:02:18]} exd5 {[%emt 0:02:43]} 8.
exd5 {[%emt 0:00:05]} d6 {[%emt 0:00:26]} 9. Bd2 {[%emt 0:01:28]} O-O {[%emt 0:
00:13]} 10. f3 {[%emt 0:00:24]} a6 {[%emt 0:02:53]} 11. O-O-O {[%emt 0:03:16]}
b5 {[%emt 0:08:37]} 12. g4 {[%emt 0:08:24]} Nbd7 {[%emt 0:01:57]} 13. g5 {
[%emt 0:11:03]} Ne8 {[%emt 0:02:14]} 14. f4 {[%emt 0:02:11]} Nb6 {[%emt 0:00:
49]} 15. Ng3 {[%emt 0:03:16]} f5 {[%emt 0:01:25]} 16. a3 {[%emt 0:13:24]} Ba5 {
[%emt 0:01:46]} 17. b3 {[%emt 0:00:30]} bxc4 {[%emt 0:02:34]} 18. bxc4 {
[%emt 0:00:02]} Qb7 {[%emt 0:02:11]} 19. Re1 {[%emt 0:03:03]} Rb8 {[%emt 0:01:
12]} 20. Bd3 {[%emt 0:01:16]} Bd7 {[%emt 0:00:36]} 21. Re7 {[%emt 0:01:48]} Nc8
{[%emt 0:00:34]} 22. Rxd7 {[%emt 0:06:42]} Qxd7 {[%emt 0:00:11]} 23. Bxf5 {
[%emt 0:00:01]} Qb7 {[%emt 0:00:24]} 24. h4 {[%emt 0:26:16]} Nb6 {[%emt 0:07:
31]} 25. Bxh7+ {[%emt 0:02:08]} Kh8 {[%emt 0:00:06]} 26. Bd3 {[%emt 0:00:04]}
Nc8 {[%emt 0:05:15]} 27. h5 {[%emt 0:00:39]} Qb3 {[%emt 0:00:09]} 28. Qxb3 {
[%emt 0:00:57]} Rxb3 {[%emt 0:00:04]} 29. Kc2 {[%emt 0:00:10]} Rxa3 {[%emt 0:
01:33]} 30. f5 {[%emt 0:01:03]} Nb6 {[%emt 0:03:23]} 31. h6 {[%emt 0:00:39]}
Na4 {[%emt 0:01:20]} 32. Nge2 {[%emt 0:00:41]} Bb4 {[%emt 0:03:45]} 33. hxg7+ {
[%emt 0:01:30]} Kxg7 {[%emt 0:00:02]} 34. Rh6 {[%emt 0:00:05]} Ra1 {[%emt 0:09:
59]} 35. f6+ {[%emt 0:03:55]} Nxf6 {[%emt 0:01:29]} 36. Rg6+ {[%emt 0:00:02]}
Kf7 {[%emt 0:00:52]} 37. Rxf6+ {[%emt 0:00:24]} Kg7 {[%emt 0:00:25]} 38. Rxf8 {
[%emt 0:02:21]} Kxf8 {[%emt 0:00:02]} 39. Bf4 {[%emt 0:00:12]} Ke7 {[%emt 0:00:
49]} 40. Nxa4 {[%emt 0:00:27]} Rxa4 {[%emt 0:00:27]} 41. Ng3 {[%emt 0:30:45]}
Ra2+ {[%emt 0:30:26]} 42. Kd1 {[%emt 0:00:32]} Ra1+ {[%emt 0:01:56]} 43. Ke2 {
[%emt 0:00:02]} a5 {[%emt 0:01:01]} 44. Nf5+ {[%emt 0:00:04]} Kd7 {[%emt 0:00:
21]} 45. Nxd6 {[%emt 0:00:32]} a4 {[%emt 0:00:26]} 46. Bf5+ {[%emt 0:04:08]}
Ke7 {[%emt 0:01:57]} 47. Nb7 {[%emt 0:00:00]} Re1+ {[%emt 0:00:00]} 48. Kf2 {
[%emt 0:00:00]} a3 {[%emt 0:00:00]} 49. d6+ {[%emt 0:00:00]} Kf7 {[%emt 0:00:
00]} 50. d7 {[%emt 0:00:00]} Rd1 {[%emt 0:00:00]} 1-0

[Event "EICC 2021"]
[Site "Reykjavik"]
[Date "2021.09.04"]
[Round "10.26"]
[White "Subelj, Jan"]
[Black "Paichadze, Luka"]
[Result "0-1"]
[ECO "B10"]
[WhiteElo "2412"]
[BlackElo "2564"]
[Annotator "ChessBase"]
[PlyCount "90"]
[EventDate "2021.08.26"]
[EventType "swiss"]
[EventCountry "ISL"]
[Tiebreak "Cut1 Buchholz"]
[SourceTitle "playchess.com"]
[Source "ChessBase"]
[SourceQuality "1"]
[TimeControl "40/5400+30:1800+30"]

1. e4 {[%emt 0:00:10]} c6 {[%emt 0:00:14]} 2. Nf3 {[%emt 0:01:04]} d5 {[%emt 0:
00:07]} 3. d3 {[%emt 0:00:28]} g6 {[%emt 0:02:45]} 4. Nbd2 {[%emt 0:00:50]} Bg7
{[%emt 0:00:09]} 5. d4 {[%emt 0:00:57]} Nh6 {[%emt 0:01:45]} 6. c3 {[%emt 0:03:
07]} O-O {[%emt 0:00:53]} 7. Be2 {[%emt 0:02:07]} Bg4 {[%emt 0:09:42]} 8. h3 {
[%emt 0:03:35]} Bxf3 {[%emt 0:00:08]} 9. Bxf3 {[%emt 0:00:41]} dxe4 {[%emt 0:
01:25]} 10. Bxe4 {[%emt 0:04:27]} Nd7 {[%emt 0:09:20]} 11. Nf3 {[%emt 0:01:10]}
Re8 {[%emt 0:10:19]} 12. O-O {[%emt 0:03:59]} Nf5 {[%emt 0:07:05]} 13. Bf4 {
[%emt 0:06:39]} Nd6 {[%emt 0:04:13]} 14. Bc2 {[%emt 0:00:24]} Nc4 {[%emt 0:07:
47]} 15. Bb3 {[%emt 0:03:43]} Ncb6 {[%emt 0:10:41]} 16. Ng5 {[%emt 0:03:16]}
Nd5 {[%emt 0:01:56]} 17. Qf3 {[%emt 0:00:48]} e6 {[%emt 0:01:02]} 18. Bd2 {
[%emt 0:02:04]} N7f6 {[%emt 0:01:38]} 19. Qe2 {[%emt 0:15:10]} a5 {[%emt 0:00:
35]} 20. c4 {[%emt 0:05:58]} Ne7 {[%emt 0:00:42]} 21. Bc3 {[%emt 0:01:34]} Nf5
{[%emt 0:00:25]} 22. Rad1 {[%emt 0:00:46]} Qb8 {[%emt 0:03:23]} 23. a4 {
[%emt 0:08:53]} Qf4 {[%emt 0:04:34]} 24. Nf3 {[%emt 0:00:07]} Ne4 {[%emt 0:01:
05]} 25. c5 {[%emt 0:04:01]} Ng5 {[%emt 0:07:49]} 26. Ne5 {[%emt 0:02:01]} Red8
{[%emt 0:01:44]} 27. g3 {[%emt 0:10:33]} Qe4 {[%emt 0:02:45]} 28. Qxe4 {
[%emt 0:01:01]} Nxe4 {[%emt 0:00:01]} 29. g4 {[%emt 0:01:15]} Nh4 {[%emt 0:01:
06]} 30. f3 {[%emt 0:04:43]} Nxc3 {[%emt 0:01:53]} 31. bxc3 {[%emt 0:00:01]}
Bxe5 {[%emt 0:00:12]} 32. dxe5 {[%emt 0:00:04]} Rxd1 {[%emt 0:00:15]} 33. Rxd1
{[%emt 0:00:06]} Nxf3+ {[%emt 0:00:42]} 34. Kf2 {[%emt 0:00:02]} Nxe5 {[%emt 0:
00:58]} 35. Ke3 {[%emt 0:00:04]} g5 {[%emt 0:00:58]} 36. Ke4 {[%emt 0:00:04]}
Ng6 {[%emt 0:00:10]} 37. Rd7 {[%emt 0:00:07]} Rb8 {[%emt 0:00:17]} 38. Rc7 {
[%emt 0:01:34]} Kf8 {[%emt 0:00:52]} 39. Bc4 {[%emt 0:00:09]} Ke8 {[%emt 0:01:
18]} 40. Ba2 {[%emt 0:00:20]} Ne7 {[%emt 0:01:07]} 41. Ke5 {[%emt 0:32:05]} Kd8
{[%emt 0:30:09]} 42. Kd6 {[%emt 0:00:21]} Nc8+ {[%emt 0:00:06]} 43. Rxc8+ {
[%emt 0:00:17]} Rxc8 {[%emt 0:00:06]} 44. Bb1 {[%emt 0:00:05]} h6 {[%emt 0:00:
07]} 45. Be4 {[%emt 0:00:04]} Rc7 {[%emt 0:00:06]} 0-1

[Event "EICC 2021"]
[Site "Reykjavik"]
[Date "2021.09.04"]
[Round "10.34"]
[White "Hillarp Persson, Tiger"]
[Black "Sokolovsky, Yahli"]
[Result "0-1"]
[ECO "D12"]
[WhiteElo "2543"]
[BlackElo "2415"]
[Annotator "ChessBase"]
[PlyCount "104"]
[EventDate "2021.08.26"]
[EventType "swiss"]
[EventCountry "ISL"]
[Tiebreak "Cut1 Buchholz"]
[SourceTitle "playchess.com"]
[Source "ChessBase"]
[SourceQuality "1"]
[TimeControl "40/5400+30:1800+30"]

1. d4 {[%emt 0:00:51]} d5 {[%emt 0:00:11]} 2. c4 {[%emt 0:00:06]} c6 {[%emt 0:
00:03]} 3. Nf3 {[%emt 0:00:07]} Nf6 {[%emt 0:00:05]} 4. e3 {[%emt 0:00:08]} Bf5
{[%emt 0:00:35]} 5. Nc3 {[%emt 0:00:09]} e6 {[%emt 0:00:02]} 6. Nh4 {[%emt 0:
00:08]} Be4 {[%emt 0:00:03]} 7. f3 {[%emt 0:00:09]} Bg6 {[%emt 0:00:04]} 8. Qb3
{[%emt 0:00:07]} Qc7 {[%emt 0:00:58]} 9. Bd2 {[%emt 0:01:20]} Be7 {[%emt 0:00:
28]} 10. cxd5 {[%emt 0:01:11]} cxd5 {[%emt 0:00:47]} 11. Nxg6 {[%emt 0:00:13]}
hxg6 {[%emt 0:00:05]} 12. O-O-O {[%emt 0:00:10]} Nc6 {[%emt 0:00:36]} 13. Kb1 {
[%emt 0:00:19]} Rc8 {[%emt 0:09:46]} 14. Rc1 {[%emt 0:03:53]} O-O {[%emt 0:01:
39]} 15. Qd1 {[%emt 0:25:41]} e5 {[%emt 0:14:13]} 16. Be1 {[%emt 0:03:31]} exd4
{[%emt 0:05:42]} 17. exd4 {[%emt 0:00:13]} Qf4 {[%emt 0:14:47]} 18. Bf2 {
[%emt 0:10:42]} Ne4 {[%emt 0:08:30]} 19. Nxd5 {[%emt 0:02:53]} Nxf2 {[%emt 0:
01:31]} 20. Nxf4 {[%emt 0:00:10]} Nxd1 {[%emt 0:00:06]} 21. Rxd1 {[%emt 0:00:
06]} Rfd8 {[%emt 0:07:21]} 22. d5 {[%emt 0:02:25]} g5 {[%emt 0:09:43]} 23. Ne2
{[%emt 0:00:47]} Bf6 {[%emt 0:07:34]} 24. Ng3 {[%emt 0:01:37]} Nb4 {[%emt 0:01:
36]} 25. Ne4 {[%emt 0:00:34]} Be5 {[%emt 0:00:43]} 26. a3 {[%emt 0:07:16]} Nxd5
{[%emt 0:00:47]} 27. Bb5 {[%emt 0:09:14]} Ne3 {[%emt 0:05:09]} 28. Rxd8+ {
[%emt 0:05:15]} Rxd8 {[%emt 0:00:04]} 29. g3 {[%emt 0:00:40]} f5 {[%emt 0:02:
41]} 30. Nxg5 {[%emt 0:01:56]} Rd2 {[%emt 0:00:50]} 31. Ba4 {[%emt 0:00:06]}
Rxb2+ {[%emt 0:06:05]} 32. Kc1 {[%emt 0:00:06]} Bc3 {[%emt 0:00:42]} 33. g4 {
[%emt 0:02:05]} b5 {[%emt 0:02:05]} 34. Rd1 {[%emt 0:01:50]} Nxd1 {[%emt 0:00:
21]} 35. Bxd1 {[%emt 0:00:07]} Rxh2 {[%emt 0:01:08]} 36. Bb3+ {[%emt 0:00:09]}
Kf8 {[%emt 0:00:23]} 37. Ne6+ {[%emt 0:00:08]} Ke7 {[%emt 0:00:04]} 38. gxf5 {
[%emt 0:00:07]} Kf6 {[%emt 0:00:58]} 39. Nc7 {[%emt 0:00:47]} Bb2+ {[%emt 0:00:
43]} 40. Kd1 {[%emt 0:00:13]} Bxa3 {[%emt 0:00:49]} 41. Nxb5 {[%emt 0:30:09]}
Rb2 {[%emt 0:06:10]} 42. Bc4 {[%emt 0:00:00]} Bc5 {[%emt 0:00:30]} 43. Nc7 {
[%emt 0:00:00]} Kxf5 {[%emt 0:07:18]} 44. Ne6 {[%emt 0:00:00]} Rb4 {[%emt 0:01:
11]} 45. Bd5 {[%emt 0:00:00]} Bd4 {[%emt 0:00:44]} 46. Nd8 {[%emt 0:00:00]} Rb2
{[%emt 0:01:30]} 47. Kc1 {[%emt 0:00:00]} Rh2 {[%emt 0:00:45]} 48. Be4+ {
[%emt 0:00:00]} Kf4 {[%emt 0:00:29]} 49. Nc6 {[%emt 0:00:00]} Bc5 {[%emt 0:01:
00]} 50. Kb1 {[%emt 0:00:00]} g5 {[%emt 0:02:28]} 51. Nd8 {[%emt 0:00:00]} Be7
{[%emt 0:00:25]} 52. Nc6 {[%emt 0:00:00]} Bf6 {[%emt 0:00:39]} 0-1

[Event "EICC 2021"]
[Site "Reykjavik"]
[Date "2021.09.04"]
[Round "10.35"]
[White "Suleymanli, Aydin"]
[Black "D`Costa, Lorin"]
[Result "1-0"]
[ECO "A09"]
[WhiteElo "2536"]
[BlackElo "2381"]
[Annotator "ChessBase"]
[PlyCount "61"]
[EventDate "2021.08.26"]
[EventType "swiss"]
[EventCountry "ISL"]
[Tiebreak "Cut1 Buchholz"]
[SourceTitle "playchess.com"]
[Source "ChessBase"]
[SourceQuality "1"]
[TimeControl "40/5400+30:1800+30"]

1. Nf3 {[%emt 0:00:02]} d5 {[%emt 0:04:36]} 2. e3 {[%emt 0:01:07]} Nf6 {
[%emt 0:01:14]} 3. c4 {[%emt 0:00:21]} dxc4 {[%emt 0:05:08]} 4. Bxc4 {[%emt 0:
02:47]} e6 {[%emt 0:00:18]} 5. Qc2 {[%emt 0:00:44]} c5 {[%emt 0:02:41]} 6. b3 {
[%emt 0:03:04]} a6 {[%emt 0:02:37]} 7. Bb2 {[%emt 0:01:14]} Nbd7 {[%emt 0:08:
00]} 8. Be2 {[%emt 0:04:25]} b6 {[%emt 0:04:54]} 9. d3 {[%emt 0:00:50]} Bb7 {
[%emt 0:00:20]} 10. Nbd2 {[%emt 0:00:06]} Rc8 {[%emt 0:11:42]} 11. a3 {[%emt 0:
00:49]} b5 {[%emt 0:02:13]} 12. Rc1 {[%emt 0:01:42]} Be7 {[%emt 0:06:46]} 13.
g4 {[%emt 0:02:45]} O-O {[%emt 0:07:40]} 14. g5 {[%emt 0:01:35]} Nd5 {[%emt 0:
04:46]} 15. Ne4 {[%emt 0:09:27]} Re8 {[%emt 0:08:42]} 16. h4 {[%emt 0:01:13]}
Bf8 {[%emt 0:01:55]} 17. h5 {[%emt 0:01:36]} f5 {[%emt 0:06:47]} 18. gxf6 {
[%emt 0:00:38]} N5xf6 {[%emt 0:00:55]} 19. h6 {[%emt 0:11:07]} g6 {[%emt 0:02:
33]} 20. Nfg5 {[%emt 0:02:48]} Nxe4 {[%emt 0:07:12]} 21. Nxe4 {[%emt 0:01:00]}
Bxe4 {[%emt 0:01:19]} 22. dxe4 {[%emt 0:00:51]} Qg5 {[%emt 0:00:30]} 23. Rd1 {
[%emt 0:03:33]} Rc7 {[%emt 0:04:05]} 24. Qc3 {[%emt 0:02:32]} e5 {[%emt 0:00:
14]} 25. Qa5 {[%emt 0:00:18]} Ra7 {[%emt 0:02:28]} 26. Bxb5 {[%emt 0:00:47]}
axb5 {[%emt 0:00:37]} 27. Qxa7 {[%emt 0:00:08]} Nf6 {[%emt 0:00:01]} 28. Qb7 {
[%emt 0:01:52]} Qg2 {[%emt 0:00:57]} 29. Rf1 {[%emt 0:00:06]} Bxh6 {[%emt 0:00:
18]} 30. Qxb5 {[%emt 0:01:25]} Bxe3 {[%emt 0:00:31]} 31. fxe3 {[%emt 0:00:23]}
1-0

[Event "EICC 2021"]
[Site "Reykjavik"]
[Date "2021.09.04"]
[Round "10.36"]
[White "Ferreira, Jorge Viterbo"]
[Black "Sousa, Andre Ventura"]
[Result "1-0"]
[ECO "C84"]
[WhiteElo "2520"]
[BlackElo "2405"]
[Annotator "ChessBase"]
[PlyCount "115"]
[EventDate "2021.08.26"]
[EventType "swiss"]
[EventCountry "ISL"]
[Tiebreak "Cut1 Buchholz"]
[SourceTitle "playchess.com"]
[Source "ChessBase"]
[SourceQuality "1"]
[TimeControl "40/5400+30:1800+30"]

1. e4 {[%emt 0:00:03]} e5 {[%emt 0:00:03]} 2. Nf3 {[%emt 0:00:12]} Nc6 {
[%emt 0:00:03]} 3. Bb5 {[%emt 0:00:13]} a6 {[%emt 0:00:25]} 4. Ba4 {[%emt 0:00:
10]} Nf6 {[%emt 0:00:05]} 5. O-O {[%emt 0:00:18]} Be7 {[%emt 0:01:26]} 6. d3 {
[%emt 0:00:26]} b5 {[%emt 0:00:19]} 7. Bb3 {[%emt 0:00:12]} d6 {[%emt 0:00:04]}
8. a3 {[%emt 0:00:20]} Na5 {[%emt 0:02:11]} 9. Ba2 {[%emt 0:00:26]} c5 {
[%emt 0:00:15]} 10. Nc3 {[%emt 0:00:56]} Be6 {[%emt 0:00:04]} 11. Nh4 {[%emt 0:
01:00]} O-O {[%emt 0:00:03]} 12. Nf5 {[%emt 0:00:46]} Bxf5 {[%emt 0:00:03]} 13.
exf5 {[%emt 0:00:12]} d5 {[%emt 0:00:02]} 14. Bg5 {[%emt 0:00:48]} c4 {[%emt 0:
03:45]} 15. Re1 {[%emt 0:01:28]} Ra7 {[%emt 0:08:10]} 16. Rxe5 {[%emt 0:02:04]}
Rd7 {[%emt 0:00:39]} 17. Re1 {[%emt 0:00:47]} Nc6 {[%emt 0:02:39]} 18. Ne2 {
[%emt 0:04:28]} Re8 {[%emt 0:05:32]} 19. Ng3 {[%emt 0:03:53]} h6 {[%emt 0:21:
39]} 20. Bh4 {[%emt 0:04:41]} Nh7 {[%emt 0:22:25]} 21. Bxe7 {[%emt 0:12:57]}
Rdxe7 {[%emt 0:01:44]} 22. Qd2 {[%emt 0:03:22]} Nf6 {[%emt 0:00:15]} 23. h3 {
[%emt 0:08:17]} Qd7 {[%emt 0:01:44]} 24. Rxe7 {[%emt 0:04:22]} Rxe7 {[%emt 0:
01:27]} 25. Rd1 {[%emt 0:02:09]} Qe8 {[%emt 0:05:47]} 26. Kf1 {[%emt 0:16:17]}
Re5 {[%emt 0:09:49]} 27. d4 {[%emt 0:04:48]} Ne4 {[%emt 0:03:41]} 28. Nxe4 {
[%emt 0:00:09]} Rxe4 {[%emt 0:00:02]} 29. c3 {[%emt 0:00:10]} f6 {[%emt 0:02:
24]} 30. Bb1 {[%emt 0:01:49]} Re7 {[%emt 0:00:03]} 31. Bc2 {[%emt 0:00:41]} Qb8
{[%emt 0:01:08]} 32. g3 {[%emt 0:01:59]} a5 {[%emt 0:00:34]} 33. Ra1 {[%emt 0:
01:14]} Rd7 {[%emt 0:02:15]} 34. Bd1 {[%emt 0:02:35]} Ne7 {[%emt 0:00:09]} 35.
Bf3 {[%emt 0:02:32]} Rd8 {[%emt 0:02:19]} 36. Qe3 {[%emt 0:01:08]} Kf8 {
[%emt 0:00:17]} 37. Re1 {[%emt 0:01:30]} Qd6 {[%emt 0:00:11]} 38. Bg4 {[%emt 0:
06:36]} Rb8 {[%emt 0:01:19]} 39. Qf3 {[%emt 0:01:05]} Qc7 {[%emt 0:00:57]} 40.
Bh5 {[%emt 0:02:34]} Rb6 {[%emt 0:00:59]} 41. Kg2 {[%emt 0:36:11]} Qd7 {
[%emt 0:31:04]} 42. Qf4 {[%emt 0:00:00]} Qd6 {[%emt 0:00:00]} 43. Qg4 {[%emt 0:
00:00]} Qd7 {[%emt 0:00:00]} 44. Bg6 {[%emt 0:00:00]} Qc7 {[%emt 0:00:00]} 45.
Qh5 {[%emt 0:00:00]} Qd7 {[%emt 0:00:00]} 46. Bf7 {[%emt 0:00:00]} Rd6 {
[%emt 0:00:00]} 47. Be6 {[%emt 0:00:00]} Qe8 {[%emt 0:00:00]} 48. Qf3 {[%emt 0:
00:00]} Qc6 {[%emt 0:00:00]} 49. h4 {[%emt 0:00:00]} Rd8 {[%emt 0:00:00]} 50.
g4 {[%emt 0:00:00]} Ng8 {[%emt 0:00:00]} 51. Re3 {[%emt 0:00:00]} Qb7 {[%emt 0:
00:00]} 52. g5 {[%emt 0:00:00]} hxg5 {[%emt 0:00:00]} 53. hxg5 {[%emt 0:00:00]}
fxg5 {[%emt 0:00:00]} 54. Qh5 {[%emt 0:00:00]} Nh6 {[%emt 0:00:00]} 55. Qxg5 {
[%emt 0:00:00]} Qe7 {[%emt 0:00:00]} 56. f6 {[%emt 0:00:00]} Qxf6 {[%emt 0:00:
00]} 57. Rf3 {[%emt 0:00:00]} Nf7 {[%emt 0:00:00]} 58. Rxf6 {[%emt 0:00:00]}
1-0

[Event "EICC 2021"]
[Site "Reykjavik"]
[Date "2021.09.04"]
[Round "10.37"]
[White "Mazur, Stefan"]
[Black "Hjartarson, Johann"]
[Result "1-0"]
[ECO "C19"]
[WhiteElo "2416"]
[BlackElo "2519"]
[Annotator "ChessBase"]
[PlyCount "107"]
[EventDate "2021.08.26"]
[EventType "swiss"]
[EventCountry "ISL"]
[Tiebreak "Cut1 Buchholz"]
[SourceTitle "playchess.com"]
[Source "ChessBase"]
[SourceQuality "1"]
[TimeControl "40/5400+30:1800+30"]

1. e4 {[%emt 0:04:55]} e6 {[%emt 0:00:19]} 2. d4 {[%emt 0:00:26]} d5 {[%emt 0:
00:06]} 3. Nc3 {[%emt 0:00:05]} Bb4 {[%emt 0:00:13]} 4. e5 {[%emt 0:00:43]} c5
{[%emt 0:00:13]} 5. a3 {[%emt 0:00:05]} Bxc3+ {[%emt 0:00:05]} 6. bxc3 {
[%emt 0:00:05]} Ne7 {[%emt 0:00:07]} 7. Nf3 {[%emt 0:02:01]} Nbc6 {[%emt 0:00:
38]} 8. h4 {[%emt 0:04:13]} Bd7 {[%emt 0:02:10]} 9. a4 {[%emt 0:03:57]} Qa5 {
[%emt 0:01:24]} 10. Bd2 {[%emt 0:02:28]} O-O-O {[%emt 0:03:40]} 11. h5 {
[%emt 0:06:16]} h6 {[%emt 0:11:50]} 12. Qb1 {[%emt 0:03:34]} f6 {[%emt 0:04:46]
} 13. Qb5 {[%emt 0:12:44]} cxd4 {[%emt 0:06:43]} 14. Qxa5 {[%emt 0:05:15]} Nxa5
{[%emt 0:00:14]} 15. exf6 {[%emt 0:00:11]} gxf6 {[%emt 0:00:24]} 16. cxd4 {
[%emt 0:00:12]} Nc4 {[%emt 0:04:15]} 17. Bc1 {[%emt 0:04:42]} Nc6 {[%emt 0:01:
40]} 18. Rh4 {[%emt 0:10:11]} Nd6 {[%emt 0:08:12]} 19. Rf4 {[%emt 0:04:18]} Ne4
{[%emt 0:03:55]} 20. Ba3 {[%emt 0:06:36]} Be8 {[%emt 0:06:33]} 21. Rh4 {
[%emt 0:02:57]} Rg8 {[%emt 0:00:51]} 22. g3 {[%emt 0:01:40]} f5 {[%emt 0:02:35]
} 23. Bb5 {[%emt 0:03:08]} Ng5 {[%emt 0:06:06]} 24. Ke2 {[%emt 0:05:19]} Ne4 {
[%emt 0:08:59]} 25. Bxc6 {[%emt 0:02:29]} Bxc6 {[%emt 0:00:08]} 26. Ne5 {
[%emt 0:00:56]} Bxa4 {[%emt 0:01:51]} 27. Bc1 {[%emt 0:00:16]} Rd6 {[%emt 0:11:
02]} 28. Rxe4 {[%emt 0:05:05]} Ra6 {[%emt 0:05:13]} 29. Rxa4 {[%emt 0:00:47]}
Rxa4 {[%emt 0:00:08]} 30. Rh4 {[%emt 0:00:16]} Rh8 {[%emt 0:00:07]} 31. Kd3 {
[%emt 0:02:06]} Ra1 {[%emt 0:02:22]} 32. Rh1 {[%emt 0:03:03]} Rh7 {[%emt 0:06:
10]} 33. Re1 {[%emt 0:00:11]} b5 {[%emt 0:00:30]} 34. Bd2 {[%emt 0:02:44]} Ra3+
{[%emt 0:00:09]} 35. Ke2 {[%emt 0:00:11]} a5 {[%emt 0:02:43]} 36. Rb1 {[%emt 0:
00:42]} b4 {[%emt 0:00:00]} 37. Rb3 {[%emt 0:01:58]} Ra2 {[%emt 0:00:17]} 38.
Kd3 {[%emt 0:00:38]} Rc7 {[%emt 0:01:16]} 39. c3 {[%emt 0:00:44]} Ra3 {[%emt 0:
01:04]} 40. Kc2 {[%emt 0:00:57]} Ra2+ {[%emt 0:00:41]} 41. Rb2 {[%emt 0:06:01]}
Ra3 {[%emt 0:02:47]} 42. Rb3 {[%emt 0:11:59]} Ra2+ {[%emt 0:00:17]} 43. Rb2 {
[%emt 0:01:16]} Ra3 {[%emt 0:00:55]} 44. Bxh6 {[%emt 0:00:19]} bxc3 {[%emt 0:
11:59]} 45. Rb3 {[%emt 0:00:08]} Ra2+ {[%emt 0:00:34]} 46. Kd3 {[%emt 0:00:06]}
c2 {[%emt 0:05:30]} 47. Bc1 {[%emt 0:05:09]} Ra1 {[%emt 0:00:06]} 48. Kd2 {
[%emt 0:00:11]} Rh7 {[%emt 0:00:26]} 49. Rc3+ {[%emt 0:01:49]} Kb7 {[%emt 0:00:
07]} 50. Kxc2 {[%emt 0:00:35]} Rxh5 {[%emt 0:00:07]} 51. Nd3 {[%emt 0:00:47]}
Kb6 {[%emt 0:01:49]} 52. Nc5 {[%emt 0:01:19]} Ra2+ {[%emt 0:05:39]} 53. Bb2 {
[%emt 0:00:08]} Rh1 {[%emt 0:00:07]} 54. Kb3 {[%emt 0:00:36]} 1-0

[Event "EICC 2021"]
[Site "Reykjavik"]
[Date "2021.09.04"]
[Round "10.38"]
[White "Kaasen, Tor Fredrik"]
[Black "Stefansson, Hannes"]
[Result "1/2-1/2"]
[ECO "A07"]
[WhiteElo "2406"]
[BlackElo "2519"]
[Annotator "ChessBase"]
[PlyCount "74"]
[EventDate "2021.08.26"]
[EventType "swiss"]
[EventCountry "ISL"]
[Tiebreak "Cut1 Buchholz"]
[SourceTitle "playchess.com"]
[Source "ChessBase"]
[SourceQuality "1"]
[TimeControl "40/5400+30:1800+30"]

1. Nf3 {[%emt 0:00:05]} d5 {[%emt 0:01:38]} 2. g3 {[%emt 0:00:22]} g6 {[%emt 0:
01:06]} 3. Bg2 {[%emt 0:00:31]} Bg7 {[%emt 0:00:39]} 4. O-O {[%emt 0:00:27]} e5
{[%emt 0:00:54]} 5. d3 {[%emt 0:00:28]} Nc6 {[%emt 0:02:22]} 6. e4 {[%emt 0:00:
49]} dxe4 {[%emt 0:06:04]} 7. dxe4 {[%emt 0:00:12]} Qxd1 {[%emt 0:00:49]} 8.
Rxd1 {[%emt 0:00:08]} Bg4 {[%emt 0:01:27]} 9. c3 {[%emt 0:01:52]} Nf6 {[%emt 0:
02:21]} 10. h3 {[%emt 0:08:27]} Be6 {[%emt 0:01:11]} 11. Re1 {[%emt 0:01:30]}
O-O {[%emt 0:05:04]} 12. b4 {[%emt 0:03:13]} Rfd8 {[%emt 0:04:04]} 13. Bf1 {
[%emt 0:00:54]} Ne8 {[%emt 0:04:53]} 14. a4 {[%emt 0:05:22]} Nd6 {[%emt 0:03:
56]} 15. Na3 {[%emt 0:02:20]} a6 {[%emt 0:03:29]} 16. Ng5 {[%emt 0:06:44]} Bc8
{[%emt 0:08:24]} 17. Nc4 {[%emt 0:02:41]} h6 {[%emt 0:00:32]} 18. Nxd6 {
[%emt 0:00:48]} cxd6 {[%emt 0:03:19]} 19. Nf3 {[%emt 0:00:24]} Be6 {[%emt 0:02:
40]} 20. Ba3 {[%emt 0:12:23]} d5 {[%emt 0:04:48]} 21. b5 {[%emt 0:04:00]} axb5
{[%emt 0:01:44]} 22. axb5 {[%emt 0:01:10]} Na5 {[%emt 0:00:28]} 23. Bb4 {
[%emt 0:03:18]} Nc4 {[%emt 0:00:35]} 24. Rac1 {[%emt 0:11:23]} Rac8 {[%emt 0:
02:13]} 25. exd5 {[%emt 0:01:42]} Rxd5 {[%emt 0:04:08]} 26. Red1 {[%emt 0:03:
00]} Rxb5 {[%emt 0:08:05]} 27. Nd2 {[%emt 0:00:45]} Rb6 {[%emt 0:02:04]} 28.
Nxc4 {[%emt 0:05:42]} Bxc4 {[%emt 0:00:06]} 29. Bxc4 {[%emt 0:00:25]} Rxc4 {
[%emt 0:00:04]} 30. Rd8+ {[%emt 0:00:10]} Kh7 {[%emt 0:00:05]} 31. Rcd1 {
[%emt 0:00:12]} Rf6 {[%emt 0:04:08]} 32. R1d7 {[%emt 0:03:07]} b6 {[%emt 0:00:
54]} 33. Kf1 {[%emt 0:07:36]} e4 {[%emt 0:01:34]} 34. Re8 {[%emt 0:02:48]} h5 {
[%emt 0:11:03]} 35. Ree7 {[%emt 0:02:07]} Kg8 {[%emt 0:02:21]} 36. Re8+ {
[%emt 0:00:15]} Kh7 {[%emt 0:00:05]} 37. Ree7 {[%emt 0:00:06]} Kg8 {[%emt 0:00:
04]} 1/2-1/2

[Event "EICC 2021"]
[Site "Reykjavik"]
[Date "2021.09.04"]
[Round "10.39"]
[White "Samadov, Read"]
[Black "Ftacnik, Lubomir"]
[Result "1/2-1/2"]
[ECO "D87"]
[WhiteElo "2360"]
[BlackElo "2513"]
[Annotator "ChessBase"]
[PlyCount "54"]
[EventDate "2021.08.26"]
[EventType "swiss"]
[EventCountry "ISL"]
[Tiebreak "Cut1 Buchholz"]
[SourceTitle "playchess.com"]
[Source "ChessBase"]
[SourceQuality "1"]
[TimeControl "40/5400+30:1800+30"]

1. d4 {[%emt 0:00:03]} Nf6 {[%emt 0:00:09]} 2. c4 {[%emt 0:00:11]} g6 {[%emt 0:
00:08]} 3. Nc3 {[%emt 0:00:14]} d5 {[%emt 0:00:08]} 4. cxd5 {[%emt 0:00:07]}
Nxd5 {[%emt 0:00:06]} 5. e4 {[%emt 0:00:06]} Nxc3 {[%emt 0:00:08]} 6. bxc3 {
[%emt 0:00:02]} c5 {[%emt 0:00:19]} 7. Bc4 {[%emt 0:01:10]} Bg7 {[%emt 0:00:15]
} 8. Ne2 {[%emt 0:00:16]} Nc6 {[%emt 0:00:23]} 9. Be3 {[%emt 0:00:30]} O-O {
[%emt 0:00:16]} 10. O-O {[%emt 0:00:12]} Bg4 {[%emt 0:00:14]} 11. f3 {[%emt 0:
00:30]} Bd7 {[%emt 0:00:13]} 12. Rb1 {[%emt 0:01:18]} Rc8 {[%emt 0:00:43]} 13.
Bd3 {[%emt 0:05:26]} Na5 {[%emt 0:00:35]} 14. h4 {[%emt 0:25:36]} e5 {[%emt 0:
01:39]} 15. Qe1 {[%emt 0:08:31]} cxd4 {[%emt 0:05:00]} 16. cxd4 {[%emt 0:00:15]
} exd4 {[%emt 0:00:51]} 17. Bxd4 {[%emt 0:07:11]} Ba4 {[%emt 0:33:53]} 18. Bxg7
{[%emt 0:06:20]} Kxg7 {[%emt 0:00:10]} 19. Nf4 {[%emt 0:02:09]} b6 {[%emt 0:15:
19]} 20. Rb4 {[%emt 0:04:22]} Qd6 {[%emt 0:09:04]} 21. e5 {[%emt 0:05:32]} Qc5+
{[%emt 0:00:18]} 22. Kh1 {[%emt 0:01:20]} Bd7 {[%emt 0:01:26]} 23. h5 {[%emt 0:
09:18]} Nc6 {[%emt 0:05:13]} 24. h6+ {[%emt 0:03:41]} Kh8 {[%emt 0:06:36]} 25.
Rb5 {[%emt 0:02:48]} Qe7 {[%emt 0:00:28]} 26. Qg3 {[%emt 0:03:18]} Be6 {
[%emt 0:11:28]} 27. Nxe6 {[%emt 0:07:48]} fxe6 {[%emt 0:00:55]} 1/2-1/2